[Event "Titled Tuesday Blitz January 03 Late 2023"]
[White "Fisher_TheGalactic"]
[Black "Zakarian, David"]
[BlackFideId "13301276"]
[WhiteElo "2492"]
[BlackElo "2306"]
[Result "1-0"]
[Round "10"]
[TimeControl "180+2"]
[Date "2023.01.03"]
[WhiteClock "0:00:16"]
[BlackClock "0:00:02"]

1. Nf3 {[%clk 0:03:00]}  Nf6 {[%clk 0:02:59]} 2. c4 {[%clk 0:02:58]}  e6 {[%clk 0:02:57]} 3. d4 {[%clk 0:02:57]}  b6 {[%clk 0:02:57]} 4. Nc3 {[%clk 0:02:56]}  Bb4 {[%clk 0:02:56]} 5. e3 {[%clk 0:02:52]}  Bb7 {[%clk 0:02:55]} 6. Be2 {[%clk 0:02:51]}  O-O {[%clk 0:02:55]} 7. Bd2 {[%clk 0:02:51]}  Re8 {[%clk 0:02:54]} 8. O-O {[%clk 0:02:48]}  Bf8 {[%clk 0:02:47]} 9. Qc2 {[%clk 0:02:48]}  d6 {[%clk 0:02:42]} 10. e4 {[%clk 0:02:48]}  e5 {[%clk 0:02:41]} 11. d5 {[%clk 0:02:44]}  Nbd7 {[%clk 0:02:41]} 12. b4 {[%clk 0:02:44]}  g6 {[%clk 0:02:29]} 13. a4 {[%clk 0:02:42]}  a5 {[%clk 0:02:28]} 14. bxa5 {[%clk 0:02:39]}  Rxa5 {[%clk 0:02:27]} 15. Nb5 {[%clk 0:02:37]}  Ra8 {[%clk 0:02:26]} 16. a5 {[%clk 0:02:37]}  Nc5 {[%clk 0:02:21]} 17. axb6 {[%clk 0:02:35]}  cxb6 {[%clk 0:02:22]} 18. Rxa8 {[%clk 0:02:34]}  Bxa8 {[%clk 0:02:23]} 19. Bg5 {[%clk 0:02:18]}  h6 {[%clk 0:02:13]} 20. Bxf6 {[%clk 0:02:16]}  Qxf6 {[%clk 0:02:14]} 21. Ra1 {[%clk 0:02:15]}  Rc8 {[%clk 0:02:06]} 22. Ra7 {[%clk 0:02:07]}  Bb7 {[%clk 0:01:59]} 23. Nd2 {[%clk 0:02:02]}  Ba6 {[%clk 0:01:29]} 24. Nc7 {[%clk 0:01:51]}  Bb7 {[%clk 0:01:30]} 25. Nb5 {[%clk 0:01:49]}  Ba6 {[%clk 0:01:23]} 26. Rc7 {[%clk 0:01:38]}  Qd8 {[%clk 0:01:13]} 27. Rxc8 {[%clk 0:01:36]}  Qxc8 {[%clk 0:01:14]} 28. Na7 {[%clk 0:01:36]}  Qa8 {[%clk 0:01:08]} 29. Nc6 {[%clk 0:01:33]}  Bb7 {[%clk 0:01:07]} 30. Nb4 {[%clk 0:01:32]}  Qa1+ {[%clk 0:01:03]} 31. Nf1 {[%clk 0:01:31]}  Qd4 {[%clk 0:00:58]} 32. Nd2 {[%clk 0:01:29]}  h5 {[%clk 0:00:56]} 33. Nd3 {[%clk 0:00:53]}  Nxe4 {[%clk 0:00:40]} 34. Nxe4 {[%clk 0:00:49]}  Qxe4 {[%clk 0:00:39]} 35. Nb4 {[%clk 0:00:46]}  Qd4 {[%clk 0:00:34]} 36. h3 {[%clk 0:00:33]}  Qc5 {[%clk 0:00:29]} 37. Nd3 {[%clk 0:00:31]}  Qd4 {[%clk 0:00:25]} 38. Nb4 {[%clk 0:00:30]}  e4 {[%clk 0:00:21]} 39. Nc6 {[%clk 0:00:27]}  Qc5 {[%clk 0:00:19]} 40. Qxe4 {[%clk 0:00:26]}  Bg7 {[%clk 0:00:13]} 41. g4 {[%clk 0:00:20]}  hxg4 {[%clk 0:00:12]} 42. hxg4 {[%clk 0:00:21]}  Ba6 {[%clk 0:00:11]} 43. Ne7+ {[%clk 0:00:16]}  Kh7 {[%clk 0:00:11]} 44. Qh1+ {[%clk 0:00:16]}  Bh6 {[%clk 0:00:06]} 45. g5 {[%clk 0:00:16]}  Qd4 {[%clk 0:00:02]} 46. Qxh6# {[%clk 0:00:16]} 1-0


[Site "https://www.chess.com"]

[Event "Titled Tuesday Blitz January 03 Late 2023"]
[White "Fernandez Garcia, Gumersindo"]
[Black "Andrews, Todd"]
[WhiteFideId "24516740"]
[BlackFideId "2012456"]
[WhiteElo "2160"]
[BlackElo "2220"]
[Result "1-0"]
[Round "10"]
[TimeControl "180+2"]
[Date "2023.01.03"]
[WhiteClock "0:00:31"]
[BlackClock "0:00:11"]

1. e4 {[%clk 0:03:00]}  e6 {[%clk 0:02:59]} 2. d4 {[%clk 0:03:00]}  d5 {[%clk 0:02:58]} 3. Bd3 {[%clk 0:02:59]}  dxe4 {[%clk 0:02:57]} 4. Bxe4 {[%clk 0:02:58]}  Nf6 {[%clk 0:02:58]} 5. Bf3 {[%clk 0:02:56]}  c5 {[%clk 0:02:58]} 6. Ne2 {[%clk 0:02:52]}  cxd4 {[%clk 0:02:59]} 7. Nxd4 {[%clk 0:02:51]}  Bc5 {[%clk 0:02:41]} 8. Be3 {[%clk 0:02:49]}  Nbd7 {[%clk 0:02:41]} 9. O-O {[%clk 0:02:44]}  a6 {[%clk 0:02:40]} 10. Nc3 {[%clk 0:02:41]}  O-O {[%clk 0:02:38]} 11. Qe2 {[%clk 0:02:30]}  Qe7 {[%clk 0:02:29]} 12. g3 {[%clk 0:02:21]}  Ne5 {[%clk 0:02:15]} 13. Bg2 {[%clk 0:02:21]}  Neg4 {[%clk 0:02:13]} 14. Ne4 {[%clk 0:01:57]}  Nxe3 {[%clk 0:01:38]} 15. Nxf6+ {[%clk 0:01:55]}  Qxf6 {[%clk 0:01:36]} 16. fxe3 {[%clk 0:01:56]}  Qg6 {[%clk 0:01:26]} 17. c3 {[%clk 0:01:36]}  e5 {[%clk 0:01:25]} 18. Nb3 {[%clk 0:01:36]}  Ba7 {[%clk 0:01:17]} 19. Kh1 {[%clk 0:01:36]}  Bg4 {[%clk 0:01:08]} 20. Qf2 {[%clk 0:01:35]}  Rab8 {[%clk 0:01:01]} 21. h3 {[%clk 0:01:31]}  Be6 {[%clk 0:01:00]} 22. Rad1 {[%clk 0:01:31]}  b5 {[%clk 0:00:56]} 23. Rd6 {[%clk 0:01:28]}  Rb6 {[%clk 0:00:45]} 24. Rfd1 {[%clk 0:01:23]}  h5 {[%clk 0:00:35]} 25. Kh2 {[%clk 0:01:22]}  Rxd6 {[%clk 0:00:27]} 26. Rxd6 {[%clk 0:01:22]}  Bb8 {[%clk 0:00:27]} 27. Rxa6 {[%clk 0:01:20]}  h4 {[%clk 0:00:28]} 28. g4 {[%clk 0:01:16]}  e4+ {[%clk 0:00:26]} 29. Kh1 {[%clk 0:01:17]}  Rd8 {[%clk 0:00:24]} 30. Nd4 {[%clk 0:01:17]}  Bc4 {[%clk 0:00:20]} 31. Qxh4 {[%clk 0:01:16]}  Qxa6 {[%clk 0:00:19]} 32. Qxd8+ {[%clk 0:01:15]}  Kh7 {[%clk 0:00:19]} 33. Bxe4+ {[%clk 0:01:14]}  g6 {[%clk 0:00:17]} 34. Qxb8 {[%clk 0:01:12]}  Qxa2 {[%clk 0:00:17]} 35. Qf4 {[%clk 0:01:01]}  Qa1+ {[%clk 0:00:17]} 36. Kh2 {[%clk 0:01:01]}  Qxb2+ {[%clk 0:00:17]} 37. Kg3 {[%clk 0:01:02]}  Qxc3 {[%clk 0:00:17]} 38. Nf3 {[%clk 0:01:01]}  b4 {[%clk 0:00:17]} 39. Ng5+ {[%clk 0:01:01]}  Kg7 {[%clk 0:00:16]} 40. h4 {[%clk 0:00:44]}  b3 {[%clk 0:00:17]} 41. h5 {[%clk 0:00:45]}  b2 {[%clk 0:00:16]} 42. h6+ {[%clk 0:00:43]}  Kxh6 {[%clk 0:00:15]} 43. Ne6+ {[%clk 0:00:36]}  Kh7 {[%clk 0:00:14]} 44. Qxf7+ {[%clk 0:00:36]}  Kh8 {[%clk 0:00:11]} 45. Qf8+ {[%clk 0:00:31]}  Kh7 {[%clk 0:00:11]} 46. Ng5# {[%clk 0:00:31]} 1-0


[Site "https://www.chess.com"]

[Event "Titled Tuesday Blitz January 03 Late 2023"]
[White "Dudzinski, Pawel"]
[Black "Khandelwal, Ankush"]
[WhiteFideId "1117890"]
[BlackFideId "413470"]
[WhiteElo "2186"]
[BlackElo "2205"]
[Result "0-1"]
[Round "10"]
[TimeControl "180+2"]
[Date "2023.01.03"]
[WhiteClock "0:00:13"]
[BlackClock "0:01:08"]

1. e4 {[%clk 0:03:00]}  c5 {[%clk 0:02:59]} 2. Nc3 {[%clk 0:03:00]}  a6 {[%clk 0:02:59]} 3. a4 {[%clk 0:02:59]}  e6 {[%clk 0:02:57]} 4. Nge2 {[%clk 0:02:57]}  d5 {[%clk 0:02:57]} 5. exd5 {[%clk 0:02:58]}  exd5 {[%clk 0:02:58]} 6. d4 {[%clk 0:02:59]}  Nf6 {[%clk 0:02:45]} 7. Bg5 {[%clk 0:02:58]}  Nbd7 {[%clk 0:02:38]} 8. dxc5 {[%clk 0:02:54]}  h6 {[%clk 0:02:36]} 9. Bxf6 {[%clk 0:02:26]}  Nxf6 {[%clk 0:02:37]} 10. Qd4 {[%clk 0:02:26]}  Be6 {[%clk 0:02:30]} 11. Nf4 {[%clk 0:02:24]}  Be7 {[%clk 0:01:51]} 12. O-O-O {[%clk 0:02:16]}  O-O {[%clk 0:01:51]} 13. Ncxd5 {[%clk 0:02:07]}  Nxd5 {[%clk 0:01:48]} 14. Nxd5 {[%clk 0:02:07]}  Bxd5 {[%clk 0:01:31]} 15. Qxd5 {[%clk 0:02:06]}  Qa5 {[%clk 0:01:31]} 16. c6 {[%clk 0:01:19]}  Qxa4 {[%clk 0:01:26]} 17. cxb7 {[%clk 0:01:19]}  Rad8 {[%clk 0:01:14]} 18. b8=Q {[%clk 0:00:14]}  Qa1+ {[%clk 0:01:12]} 19. Kd2 {[%clk 0:00:14]}  Rxd5+ {[%clk 0:01:12]} 20. Bd3 {[%clk 0:00:15]}  Qa5+ {[%clk 0:01:10]} 21. b4 {[%clk 0:00:13]}  Bxb4+ {[%clk 0:01:08]} 0-1


[Site "https://www.chess.com"]

[Event "Titled Tuesday Blitz January 03 Late 2023"]
[White "Yeritsyan, Hayk"]
[Black "Novikova, Galina"]
[WhiteFideId "13307320"]
[BlackFideId "4157095"]
[WhiteElo "2241"]
[BlackElo "2073"]
[Result "0-1"]
[Round "10"]
[TimeControl "180+2"]
[Date "2023.01.03"]
[WhiteClock "0:00:16"]
[BlackClock "0:00:30"]

1. d4 {[%clk 0:03:00]}  e6 {[%clk 0:03:00]} 2. Nf3 {[%clk 0:03:00]}  f5 {[%clk 0:03:01]} 3. Bf4 {[%clk 0:03:00]}  Nf6 {[%clk 0:03:02]} 4. h3 {[%clk 0:03:00]}  Be7 {[%clk 0:03:02]} 5. e3 {[%clk 0:03:01]}  d6 {[%clk 0:03:03]} 6. c3 {[%clk 0:03:01]}  O-O {[%clk 0:03:03]} 7. Be2 {[%clk 0:03:02]}  b6 {[%clk 0:03:02]} 8. O-O {[%clk 0:03:02]}  Bb7 {[%clk 0:03:02]} 9. Nbd2 {[%clk 0:03:02]}  Qe8 {[%clk 0:03:00]} 10. Bh2 {[%clk 0:03:01]}  h6 {[%clk 0:02:54]} 11. Ne1 {[%clk 0:03:01]}  Nbd7 {[%clk 0:02:49]} 12. Bf3 {[%clk 0:03:00]}  Bxf3 {[%clk 0:02:45]} 13. Nexf3 {[%clk 0:03:01]}  Bd8 {[%clk 0:02:43]} 14. Re1 {[%clk 0:02:59]}  e5 {[%clk 0:02:43]} 15. Nc4 {[%clk 0:03:00]}  e4 {[%clk 0:02:42]} 16. Nfd2 {[%clk 0:03:00]}  Kh8 {[%clk 0:02:30]} 17. b4 {[%clk 0:03:00]}  Rg8 {[%clk 0:02:28]} 18. Qc2 {[%clk 0:02:56]}  g5 {[%clk 0:02:27]} 19. Na3 {[%clk 0:02:55]}  Qg6 {[%clk 0:02:25]} 20. c4 {[%clk 0:02:42]}  f4 {[%clk 0:02:11]} 21. Nb5 {[%clk 0:02:36]}  g4 {[%clk 0:01:58]} 22. Bxf4 {[%clk 0:02:34]}  gxh3 {[%clk 0:01:57]} 23. g3 {[%clk 0:02:34]}  a6 {[%clk 0:01:37]} 24. Nc3 {[%clk 0:02:33]}  Re8 {[%clk 0:01:37]} 25. f3 {[%clk 0:02:19]}  Nh5 {[%clk 0:01:32]} 26. Ndxe4 {[%clk 0:02:19]}  Nxf4 {[%clk 0:01:32]} 27. exf4 {[%clk 0:02:17]}  c6 {[%clk 0:01:19]} 28. Kh2 {[%clk 0:02:11]}  Bf6 {[%clk 0:01:18]} 29. Qd2 {[%clk 0:02:03]}  Rg8 {[%clk 0:01:08]} 30. Rg1 {[%clk 0:01:54]}  Bg7 {[%clk 0:01:03]} 31. Rae1 {[%clk 0:01:49]}  Rad8 {[%clk 0:00:56]} 32. d5 {[%clk 0:01:47]}  c5 {[%clk 0:00:54]} 33. bxc5 {[%clk 0:01:45]}  bxc5 {[%clk 0:00:55]} 34. Rb1 {[%clk 0:01:37]}  Bd4 {[%clk 0:00:55]} 35. Rge1 {[%clk 0:01:30]}  Nf6 {[%clk 0:00:54]} 36. g4 {[%clk 0:01:07]}  Nxg4+ {[%clk 0:00:34]} 37. fxg4 {[%clk 0:01:03]}  Qxg4 {[%clk 0:00:34]} 38. Qe2 {[%clk 0:00:35]}  Qxf4+ {[%clk 0:00:31]} 39. Kh1 {[%clk 0:00:34]}  Rg2 {[%clk 0:00:30]} 40. Qxg2 {[%clk 0:00:14]}  hxg2+ {[%clk 0:00:30]} 41. Kxg2 {[%clk 0:00:15]}  Rg8+ {[%clk 0:00:30]} 42. Kh1 {[%clk 0:00:16]}  Qf3+ {[%clk 0:00:30]} 43. Kh2 {[%clk 0:00:16]}  Qg2# {[%clk 0:00:30]} 0-1


[Site "https://www.chess.com"]

[Event "Titled Tuesday Blitz January 03 Late 2023"]
[White "Ibadov, Dashgyn"]
[Black "aidenzhouu"]
[WhiteFideId "24107514"]
[WhiteElo "2391"]
[BlackElo "2395"]
[Result "1-0"]
[Round "10"]
[TimeControl "180+2"]
[Date "2023.01.03"]
[WhiteClock "0:01:06"]
[BlackClock "0:01:14"]

1. e4 {[%clk 0:03:00]}  c6 {[%clk 0:03:00]} 2. d4 {[%clk 0:03:00]}  d5 {[%clk 0:03:00]} 3. e5 {[%clk 0:03:01]}  Bf5 {[%clk 0:03:00]} 4. Nf3 {[%clk 0:03:01]}  e6 {[%clk 0:02:59]} 5. Be2 {[%clk 0:03:01]}  c5 {[%clk 0:02:59]} 6. Be3 {[%clk 0:03:00]}  Qb6 {[%clk 0:02:58]} 7. O-O {[%clk 0:02:58]}  Qxb2 {[%clk 0:02:51]} 8. c4 {[%clk 0:02:58]}  Nc6 {[%clk 0:02:01]} 9. cxd5 {[%clk 0:02:54]}  exd5 {[%clk 0:02:00]} 10. dxc5 {[%clk 0:02:54]}  O-O-O {[%clk 0:01:45]} 11. Bd4 {[%clk 0:02:46]}  Nxd4 {[%clk 0:01:44]} 12. Qxd4 {[%clk 0:02:47]}  Qxd4 {[%clk 0:01:41]} 13. Nxd4 {[%clk 0:02:48]}  Bxb1 {[%clk 0:01:36]} 14. Raxb1 {[%clk 0:02:46]}  Bxc5 {[%clk 0:01:37]} 15. Rfc1 {[%clk 0:02:46]}  b6 {[%clk 0:01:37]} 16. Nb3 {[%clk 0:01:51]}  Ne7 {[%clk 0:01:36]} 17. Nxc5 {[%clk 0:01:52]}  bxc5 {[%clk 0:01:37]} 18. Rxc5+ {[%clk 0:01:52]}  Kd7 {[%clk 0:01:38]} 19. Rb7+ {[%clk 0:01:49]}  Ke6 {[%clk 0:01:34]} 20. Rcc7 {[%clk 0:01:32]}  Nf5 {[%clk 0:01:22]} 21. f4 {[%clk 0:01:16]}  Nh6 {[%clk 0:01:14]} 22. g4 {[%clk 0:01:06]} 1-0


[Site "https://www.chess.com"]

[Event "Titled Tuesday Blitz January 03 Late 2023"]
[White "Jovic, Stanoje"]
[Black "Jarocka, Liwia"]
[WhiteFideId "905020"]
[BlackFideId "21807558"]
[WhiteElo "2075"]
[BlackElo "2225"]
[Result "1-0"]
[Round "10"]
[TimeControl "180+2"]
[Date "2023.01.03"]
[WhiteClock "0:00:31"]
[BlackClock "0:00:18"]

1. c4 {[%clk 0:03:00]}  e6 {[%clk 0:02:56]} 2. g3 {[%clk 0:03:00]}  d5 {[%clk 0:02:56]} 3. Bg2 {[%clk 0:03:01]}  Nf6 {[%clk 0:02:57]} 4. Nf3 {[%clk 0:03:01]}  Bd6 {[%clk 0:02:55]} 5. O-O {[%clk 0:03:00]}  O-O {[%clk 0:02:54]} 6. d4 {[%clk 0:03:00]}  dxc4 {[%clk 0:02:53]} 7. Na3 {[%clk 0:02:53]}  Bxa3 {[%clk 0:02:51]} 8. bxa3 {[%clk 0:02:53]}  b5 {[%clk 0:02:51]} 9. a4 {[%clk 0:02:49]}  a6 {[%clk 0:02:49]} 10. Bg5 {[%clk 0:02:40]}  Bb7 {[%clk 0:02:47]} 11. Rb1 {[%clk 0:02:36]}  c6 {[%clk 0:02:38]} 12. Ne5 {[%clk 0:02:33]}  h6 {[%clk 0:02:33]} 13. Bxf6 {[%clk 0:02:30]}  Qxf6 {[%clk 0:02:33]} 14. Nxc4 {[%clk 0:02:30]}  Nd7 {[%clk 0:02:28]} 15. Nd6 {[%clk 0:02:26]}  Rab8 {[%clk 0:02:22]} 16. Nxb7 {[%clk 0:02:23]}  Rxb7 {[%clk 0:02:21]} 17. axb5 {[%clk 0:02:14]}  axb5 {[%clk 0:02:19]} 18. Bxc6 {[%clk 0:02:12]}  Rc7 {[%clk 0:02:19]} 19. Bxb5 {[%clk 0:02:12]}  Nb6 {[%clk 0:02:18]} 20. e3 {[%clk 0:02:04]}  Nd5 {[%clk 0:02:18]} 21. Rc1 {[%clk 0:01:50]}  Nc3 {[%clk 0:02:17]} 22. Qb3 {[%clk 0:01:34]}  Rfc8 {[%clk 0:02:14]} 23. Rc2 {[%clk 0:01:00]}  Nxb5 {[%clk 0:02:09]} 24. Rxc7 {[%clk 0:01:00]}  Nxc7 {[%clk 0:02:07]} 25. Qb7 {[%clk 0:01:00]}  Qd8 {[%clk 0:02:04]} 26. Rc1 {[%clk 0:00:59]}  g6 {[%clk 0:02:00]} 27. a4 {[%clk 0:00:58]}  Kg7 {[%clk 0:02:00]} 28. a5 {[%clk 0:00:56]}  e5 {[%clk 0:01:48]} 29. dxe5 {[%clk 0:00:50]}  h5 {[%clk 0:00:48]} 30. h4 {[%clk 0:00:48]}  Qd7 {[%clk 0:00:19]} 31. a6 {[%clk 0:00:42]}  Qf5 {[%clk 0:00:19]} 32. Rxc7 {[%clk 0:00:37]}  Rd8 {[%clk 0:00:19]} 33. a7 {[%clk 0:00:33]}  Rd1+ {[%clk 0:00:19]} 34. Kg2 {[%clk 0:00:32]}  Rd2 {[%clk 0:00:17]} 35. Rxf7+ {[%clk 0:00:30]}  Qxf7 {[%clk 0:00:17]} 36. Qxf7+ {[%clk 0:00:31]}  Kxf7 {[%clk 0:00:18]} 37. a8=Q {[%clk 0:00:31]} 1-0


[Site "https://www.chess.com"]

[Event "Titled Tuesday Blitz January 03 Late 2023"]
[White "Pino Perez, Lazaro"]
[Black "Garcia Almaguer, Juan Manuel"]
[WhiteFideId "3517055"]
[BlackFideId "5110491"]
[WhiteElo "2142"]
[BlackElo "2090"]
[Result "0-1"]
[Round "10"]
[TimeControl "180+2"]
[Date "2023.01.03"]
[WhiteClock "0:00:02"]
[BlackClock "0:00:50"]

1. d4 {[%clk 0:03:00]}  Nf6 {[%clk 0:02:58]} 2. Bf4 {[%clk 0:03:00]}  d5 {[%clk 0:02:53]} 3. e3 {[%clk 0:02:59]}  e6 {[%clk 0:02:53]} 4. Nf3 {[%clk 0:02:58]}  Bd6 {[%clk 0:02:51]} 5. Nbd2 {[%clk 0:02:59]}  Bxf4 {[%clk 0:02:47]} 6. exf4 {[%clk 0:02:58]}  Qd6 {[%clk 0:02:42]} 7. g3 {[%clk 0:02:51]}  c5 {[%clk 0:02:31]} 8. dxc5 {[%clk 0:02:47]}  Qxc5 {[%clk 0:02:31]} 9. Bd3 {[%clk 0:02:45]}  Qb6 {[%clk 0:02:23]} 10. Rb1 {[%clk 0:02:44]}  Nc6 {[%clk 0:02:17]} 11. c3 {[%clk 0:02:42]}  O-O {[%clk 0:02:14]} 12. O-O {[%clk 0:02:42]}  Rd8 {[%clk 0:02:12]} 13. Re1 {[%clk 0:02:29]}  a5 {[%clk 0:02:12]} 14. Qe2 {[%clk 0:02:20]}  d4 {[%clk 0:02:09]} 15. c4 {[%clk 0:02:03]}  Nb4 {[%clk 0:02:06]} 16. Ne4 {[%clk 0:02:03]}  Nxd3 {[%clk 0:01:58]} 17. Qxd3 {[%clk 0:02:03]}  Nd7 {[%clk 0:01:26]} 18. Nxd4 {[%clk 0:01:45]}  Nc5 {[%clk 0:01:26]} 19. Nxc5 {[%clk 0:01:42]}  Qxc5 {[%clk 0:01:27]} 20. Rbd1 {[%clk 0:01:43]}  b5 {[%clk 0:01:21]} 21. Nb3 {[%clk 0:01:16]}  Rxd3 {[%clk 0:01:17]} 22. Nxc5 {[%clk 0:01:16]}  bxc4 {[%clk 0:01:05]} 23. Nxd3 {[%clk 0:01:06]}  cxd3 {[%clk 0:01:04]} 24. Rxd3 {[%clk 0:01:07]}  Bb7 {[%clk 0:01:03]} 25. Rd7 {[%clk 0:01:02]}  Bd5 {[%clk 0:01:03]} 26. b3 {[%clk 0:01:03]}  g6 {[%clk 0:01:01]} 27. Rc1 {[%clk 0:01:02]}  a4 {[%clk 0:01:01]} 28. bxa4 {[%clk 0:00:12]}  Rxa4 {[%clk 0:01:02]} 29. Rc2 {[%clk 0:00:12]}  Bxa2 {[%clk 0:01:01]} 30. f3 {[%clk 0:00:12]}  Bd5 {[%clk 0:01:00]} 31. Kf2 {[%clk 0:00:12]}  Ra3 {[%clk 0:01:00]} 32. Rxd5 {[%clk 0:00:10]}  exd5 {[%clk 0:01:00]} 33. Rd2 {[%clk 0:00:10]}  Ra5 {[%clk 0:00:59]} 34. Ke3 {[%clk 0:00:10]}  Kf8 {[%clk 0:00:58]} 35. Kd4 {[%clk 0:00:10]}  Ke7 {[%clk 0:00:58]} 36. Rb2 {[%clk 0:00:08]}  Ra3 {[%clk 0:00:56]} 37. Kxd5 {[%clk 0:00:05]}  Rxf3 {[%clk 0:00:56]} 38. Ke5 {[%clk 0:00:06]}  Re3+ {[%clk 0:00:56]} 39. Kd4 {[%clk 0:00:06]}  Re1 {[%clk 0:00:55]} 40. Kd3 {[%clk 0:00:03]}  Kf6 {[%clk 0:00:56]} 41. Re2 {[%clk 0:00:03]}  Ra1 {[%clk 0:00:51]} 42. Ke3 {[%clk 0:00:02]}  Rf1 {[%clk 0:00:50]} 0-1


[Site "https://www.chess.com"]

[Event "Titled Tuesday Blitz January 03 Late 2023"]
[White "Weetik, Vjacheslav"]
[Black "Van den Dikkenberg, Erik"]
[WhiteFideId "4153472"]
[BlackFideId "1005880"]
[WhiteElo "2423"]
[BlackElo "2091"]
[Result "1-0"]
[Round "10"]
[TimeControl "180+2"]
[Date "2023.01.03"]
[WhiteClock "0:00:19"]
[BlackClock "0:00:09"]

1. e4 {[%clk 0:02:59]}  c5 {[%clk 0:02:59]} 2. Nf3 {[%clk 0:02:59]}  d6 {[%clk 0:03:00]} 3. d4 {[%clk 0:02:59]}  cxd4 {[%clk 0:03:00]} 4. Nxd4 {[%clk 0:03:00]}  Nf6 {[%clk 0:03:00]} 5. Nc3 {[%clk 0:03:01]}  a6 {[%clk 0:03:01]} 6. Be3 {[%clk 0:03:01]}  Ng4 {[%clk 0:03:00]} 7. Bc1 {[%clk 0:03:00]}  Nc6 {[%clk 0:03:00]} 8. h3 {[%clk 0:02:56]}  Nf6 {[%clk 0:03:00]} 9. g4 {[%clk 0:02:55]}  g6 {[%clk 0:02:59]} 10. Be3 {[%clk 0:02:54]}  Bg7 {[%clk 0:02:59]} 11. Qd2 {[%clk 0:02:52]}  O-O {[%clk 0:02:52]} 12. O-O-O {[%clk 0:02:51]}  Qa5 {[%clk 0:02:38]} 13. Kb1 {[%clk 0:02:49]}  Nxd4 {[%clk 0:02:37]} 14. Bxd4 {[%clk 0:02:49]}  b5 {[%clk 0:02:37]} 15. g5 {[%clk 0:02:37]}  Nh5 {[%clk 0:02:36]} 16. Nd5 {[%clk 0:02:34]}  Qd8 {[%clk 0:02:30]} 17. Be2 {[%clk 0:02:32]}  Bxd4 {[%clk 0:02:27]} 18. Qxd4 {[%clk 0:02:31]}  Be6 {[%clk 0:02:19]} 19. Bxh5 {[%clk 0:02:30]}  Bxd5 {[%clk 0:02:15]} 20. exd5 {[%clk 0:02:24]}  gxh5 {[%clk 0:02:15]} 21. Qh4 {[%clk 0:02:24]}  Qb6 {[%clk 0:02:11]} 22. Qxh5 {[%clk 0:02:24]}  Qxf2 {[%clk 0:02:09]} 23. Rhf1 {[%clk 0:02:18]}  Qc5 {[%clk 0:02:00]} 24. Rf5 {[%clk 0:02:12]}  Rac8 {[%clk 0:01:59]} 25. Qe2 {[%clk 0:02:06]}  e5 {[%clk 0:01:45]} 26. h4 {[%clk 0:01:59]}  Qc4 {[%clk 0:01:40]} 27. Qf2 {[%clk 0:01:52]}  Rc5 {[%clk 0:01:35]} 28. Rf1 {[%clk 0:01:47]}  Qxd5 {[%clk 0:01:29]} 29. h5 {[%clk 0:01:43]}  Qd4 {[%clk 0:01:16]} 30. Qg2 {[%clk 0:01:30]}  Qd5 {[%clk 0:01:11]} 31. Qe2 {[%clk 0:01:17]}  Qc4 {[%clk 0:01:08]} 32. Qh2 {[%clk 0:01:11]}  e4 {[%clk 0:01:01]} 33. Rf6 {[%clk 0:01:02]}  Rxg5 {[%clk 0:00:56]} 34. Qxd6 {[%clk 0:00:58]}  Qd5 {[%clk 0:00:25]} 35. Qf4 {[%clk 0:00:41]}  Rd8 {[%clk 0:00:17]} 36. a3 {[%clk 0:00:35]}  Rg2 {[%clk 0:00:12]} 37. Rxf7 {[%clk 0:00:30]}  Qd6 {[%clk 0:00:12]} 38. Qxe4 {[%clk 0:00:19]}  Qd2 {[%clk 0:00:09]} 39. Qxh7# {[%clk 0:00:19]} 1-0


[Site "https://www.chess.com"]

[Event "Titled Tuesday Blitz January 03 Late 2023"]
[White "Hernandez Sanchez, Elvis De La Caridad"]
[Black "Le Goff, Ronan"]
[WhiteFideId "6400353"]
[BlackFideId "612073"]
[WhiteElo "2243"]
[BlackElo "2320"]
[Result "1-0"]
[Round "10"]
[TimeControl "180+2"]
[Date "2023.01.03"]
[WhiteClock "0:00:25"]
[BlackClock "0:00:48"]

1. e4 {[%clk 0:03:00]}  e5 {[%clk 0:02:59]} 2. Nf3 {[%clk 0:03:00]}  Nc6 {[%clk 0:02:59]} 3. Bb5 {[%clk 0:02:59]}  Nf6 {[%clk 0:02:58]} 4. O-O {[%clk 0:02:58]}  Nxe4 {[%clk 0:02:58]} 5. Re1 {[%clk 0:02:54]}  Nd6 {[%clk 0:02:58]} 6. a4 {[%clk 0:02:54]}  Be7 {[%clk 0:02:41]} 7. Nc3 {[%clk 0:02:46]}  O-O {[%clk 0:02:40]} 8. d4 {[%clk 0:02:44]}  exd4 {[%clk 0:02:37]} 9. Nd5 {[%clk 0:02:43]}  Re8 {[%clk 0:02:35]} 10. Bf4 {[%clk 0:02:32]}  a6 {[%clk 0:02:30]} 11. Bf1 {[%clk 0:02:26]}  Bf8 {[%clk 0:02:24]} 12. Rxe8 {[%clk 0:02:15]}  Nxe8 {[%clk 0:02:20]} 13. Nxd4 {[%clk 0:02:14]}  Nxd4 {[%clk 0:02:09]} 14. Qxd4 {[%clk 0:02:15]}  d6 {[%clk 0:02:08]} 15. Re1 {[%clk 0:02:10]}  Be6 {[%clk 0:02:03]} 16. c4 {[%clk 0:02:07]}  Bxd5 {[%clk 0:02:01]} 17. cxd5 {[%clk 0:02:06]}  Qf6 {[%clk 0:02:00]} 18. Qd2 {[%clk 0:01:54]}  h6 {[%clk 0:01:59]} 19. a5 {[%clk 0:01:48]}  g5 {[%clk 0:01:57]} 20. Be3 {[%clk 0:01:47]}  Bg7 {[%clk 0:01:57]} 21. b4 {[%clk 0:01:42]}  Qc3 {[%clk 0:01:55]} 22. Rc1 {[%clk 0:01:42]}  Qxd2 {[%clk 0:01:54]} 23. Bxd2 {[%clk 0:01:43]}  Be5 {[%clk 0:01:54]} 24. h4 {[%clk 0:01:41]}  f6 {[%clk 0:01:52]} 25. Bd3 {[%clk 0:01:38]}  Kg7 {[%clk 0:01:48]} 26. h5 {[%clk 0:01:30]}  Kf8 {[%clk 0:01:46]} 27. Bf5 {[%clk 0:01:25]}  Ke7 {[%clk 0:01:44]} 28. g3 {[%clk 0:01:21]}  Kd8 {[%clk 0:01:36]} 29. Kg2 {[%clk 0:01:10]}  Ng7 {[%clk 0:01:34]} 30. Bg6 {[%clk 0:01:10]}  b6 {[%clk 0:01:30]} 31. f4 {[%clk 0:01:06]}  gxf4 {[%clk 0:01:29]} 32. gxf4 {[%clk 0:01:07]}  Bd4 {[%clk 0:01:29]} 33. f5 {[%clk 0:01:05]}  bxa5 {[%clk 0:01:29]} 34. bxa5 {[%clk 0:01:02]}  Rb8 {[%clk 0:01:28]} 35. Bxh6 {[%clk 0:01:02]}  Rb2+ {[%clk 0:01:27]} 36. Kf3 {[%clk 0:00:57]}  Ne8 {[%clk 0:01:14]} 37. Bf4 {[%clk 0:00:52]}  Rb3+ {[%clk 0:01:11]} 38. Ke4 {[%clk 0:00:46]}  Rb4 {[%clk 0:01:08]} 39. Kf3 {[%clk 0:00:43]}  Rb3+ {[%clk 0:01:07]} 40. Kg4 {[%clk 0:00:43]}  Rb4 {[%clk 0:01:07]} 41. h6 {[%clk 0:00:36]}  Be3 {[%clk 0:01:02]} 42. Rf1 {[%clk 0:00:35]}  Bxf4 {[%clk 0:00:54]} 43. Rxf4 {[%clk 0:00:34]}  Rb1 {[%clk 0:00:55]} 44. h7 {[%clk 0:00:29]}  Rh1 {[%clk 0:00:50]} 45. Rf3 {[%clk 0:00:26]}  Rg1+ {[%clk 0:00:47]} 46. Rg3 {[%clk 0:00:25]}  Rh1 {[%clk 0:00:47]} 47. Rh3 {[%clk 0:00:25]}  Rg1+ {[%clk 0:00:48]} 48. Kf3 {[%clk 0:00:25]} 1-0


[Site "https://www.chess.com"]